bitfinex-derivatives/quotes_ETHF0:USTF0_20241207
["timestamp","ask_amount","ask_price","bid_price","bid_amount"]
[1733537671833,0.17505,3992.9,3992.6,2.5032]
[1733537672035,0.17505,3992.9,3992.5,5.18707]
[1733537672036,3.2078,3993.1,3993.0,2.5032]
[1733537672333,0.17504,3993.1,3993.0,2.5032]
[1733537679930,1.95370815,3993.4,3992.7,0.4419]
[1733537680134,0.88188,3993.5,3992.8,2.5032]
[1733537680135,1.95370815,3993.0,3992.8,2.5032]
[1733537680429,0.17505,3992.9,3992.8,2.5032]
[1733537685938,5.0,3992.9,3991.9,3.2078]
[1733537686151,2.12878815,3992.2,3992.1,2.5032]
[1733537686837,2.12878815,3992.2,3992.1,7.5152]
[1733537689142,0.17508,3992.2,3992.1,7.5152]
[1733537694138,0.17508,3992.2,3992.1,5.012]
[1733537696552,0.17508,3992.2,3992.1,8.92118217]
[1733537697645,0.17508,3992.2,3992.1,5.012]
[1733537698650,0.17508,3992.2,3992.1,13.3767208]
[1733537698857,1.95370815,3993.0,3992.1,18.54226318]
[1733537699148,0.17507,3992.5,3992.4,7.82594866]
[1733537699552,0.17507,3992.5,3992.4,2.5032]
[1733537699942,1.95370815,3993.0,3992.4,2.5032]
[1733537700151,1.95370815,3993.0,3992.3,10.32111344]
[1733537700152,0.17505,3992.9,3992.8,2.5032]
[1733537700656,0.17505,3992.9,3992.8,6.41843773]
[1733537701054,0.17505,3992.9,3992.8,2.5032]
[1733537702153,1.95370815,3993.0,3992.5,5.5429]
[1733537702154,0.17507,3992.6,3992.5,5.5429]
[1733537702551,0.17507,3992.6,3992.5,8.0461]
[1733537707571,0.17507,3992.6,3992.5,3.0341]
[1733537709468,0.17507,3992.6,3992.5,10.86329777]
[1733537709770,0.17507,3992.6,3992.5,3.0341]
[1733537710075,0.17507,3992.6,3992.5,10.86329777]
[1733537710567,0.17506,3992.7,3992.5,3.0341]
[1733537710760,0.17506,3992.7,3992.6,7.84787979]
[1733537710963,0.17506,3992.7,3992.6,10.35107979]
[1733537712267,3.2078,3992.8,3992.6,10.35107979]
[1733537712469,0.17504,3993.3,3992.7,10.35107979]
[1733537712667,3.38282,3993.7,3993.6,2.5032]
[1733537712862,3.38282,3993.7,3993.6,8.38700294]
[1733537713568,3.38282,3993.7,3993.6,2.5032]
[1733537714475,5.33652815,3993.7,3993.6,2.5032]
[1733537716169,1.0677,3994.0,3993.6,8.38700294]
[1733537716365,0.175,3994.0,3993.9,6.4253145]
[1733537716568,0.175,3994.0,3993.9,8.38700294]
[1733537716767,0.175,3994.0,3993.9,2.5032]
[1733537716970,3.12128927,3994.0,3993.9,2.5032]
[1733537717271,2.94628927,3994.2,3994.0,0.175]
[1733537717476,3.12126927,3994.5,3994.1,2.5032]
[1733537717675,3.12126927,3994.5,3994.4,2.5032]
[1733537717977,3.12126927,3994.6,3994.4,2.5032]
[1733537718272,3.2078,3994.7,3994.6,2.5032]
[1733537718575,5.16150815,3995.2,3994.8,0.17497]
[1733537718872,0.17494,3995.4,3995.1,2.5032]
[1733537719073,0.17494,3995.4,3994.9,0.5482]
[1733537719376,0.17494,3995.4,3995.3,2.5032]
[1733537719771,0.17494,3995.5,3995.3,2.5032]
[1733537719966,0.17494,3995.5,3994.9,0.5482]
[1733537720172,0.17494,3995.5,3995.4,2.5032]
[1733537721674,2.48850815,3995.6,3994.7,0.5075]
[1733537721872,2.48850815,3995.6,3994.9,2.5032]
[1733537721873,2.12866815,3995.0,3994.9,2.5032]
[1733537722372,1.95370815,3995.0,3994.9,2.5032]
[1733537722571,1.95370815,3995.0,3994.7,0.5075]
[1733537722765,0.72516,3994.9,3994.8,2.5032]
[1733537725279,3.2078,3995.3,3994.8,2.5032]
[1733537725477,1.95370815,3995.4,3995.2,2.5032]
[1733537725478,2.12865815,3995.4,3995.2,2.5032]
[1733537725676,2.12865815,3995.4,3995.3,2.5032]
[1733537726874,1.95370815,3995.4,3995.0,0.5201]
[1733537727076,0.17496,3995.1,3995.0,2.5032]
[1733537727879,3.38276,3995.1,3995.0,2.5032]
[1733537728674,0.17496,3994.9,3994.8,5.008]
[1733537728873,2.12866815,3994.9,3994.8,7.5112]
[1733537729273,1.95370815,3994.9,3994.4,0.501]
[1733537729472,3.2078,3994.7,3994.4,2.5032]
[1733537729672,3.2078,3994.7,3994.0,1.0347]
[1733537729673,3.2078,3994.7,3994.0,0.501]
[1733537729891,0.175,3994.2,3994.1,2.5032]
[1733537732383,3.2078,3994.7,3994.1,2.5032]
[1733537732683,3.2078,3994.7,3994.6,2.5032]
[1733537732684,3.38277,3994.7,3994.6,2.5032]
[1733537732879,0.17499,3994.3,3994.2,2.5032]
[1733537733278,0.175,3994.1,3994.0,0.501]
[1733537733478,0.175,3994.1,3994.0,3.0042]
[1733537733782,0.175,3994.1,3994.0,2.5032]
[1733537734880,0.5177,3994.2,3993.5,0.5459]
[1733537735183,0.17501,3993.9,3993.8,2.5032]
[1733537741680,1.0467,3994.6,3993.8,5.711]
[1733537741880,0.17498,3994.7,3994.4,2.5032]
[1733537742076,0.17498,3994.7,3994.3,3.2078]
[1733537742077,0.17498,3994.7,3994.6,2.5032]
[1733537744892,0.17498,3994.7,3994.6,7.5112]
[1733537745083,0.17498,3994.7,3994.6,2.5032]
[1733537745693,0.17498,3994.6,3994.5,0.5169]
[1733537745887,0.17498,3994.6,3994.5,3.0201]
[1733537747991,0.17498,3994.5,3994.4,5.008]
[1733537750396,0.17498,3994.6,3994.4,7.5112]
[1733537750590,0.17498,3994.6,3994.4,5.008]
[1733537750791,0.17498,3994.6,3994.5,2.5032]
[1733537758197,2.94628927,3995.0,3994.5,2.5032]
[1733537758388,0.17496,3994.9,3994.8,2.5032]
[1733537759494,3.12124927,3994.9,3994.8,2.5032]
[1733537759692,0.17496,3994.9,3994.8,7.5112]
[1733537759892,3.12124927,3994.9,3994.8,7.5112]
[1733537760292,0.17496,3994.9,3994.8,7.5112]
[1733537760497,3.12124927,3994.9,3994.8,7.5112]
[1733537760899,0.17496,3994.9,3994.8,7.5112]
[1733537763196,0.40943055,3994.9,3994.8,7.5112]
[1733537764898,0.23447055,3994.9,3994.8,7.5112]
[1733537765093,0.23447055,3994.9,3994.8,14.47148987]
[1733537765398,0.17494,3995.4,3995.0,0.17496]
[1733537765598,0.17494,3995.4,3995.3,2.5032]
[1733537765798,0.40937681,3995.4,3995.3,2.5032]
[1733537768992,0.40937681,3995.4,3995.3,0.1890843]
[1733537769197,0.17495,3995.3,3995.2,5.008]
[1733537769393,0.40938681,3995.3,3995.2,5.008]
[1733537769999,4.33581895,3995.3,3995.2,5.008]
[1733537770404,4.10138214,3995.3,3995.2,5.008]
[1733537770603,0.17495,3995.3,3995.2,5.008]
[1733537771401,4.33584266,3995.3,3995.2,5.008]
[1733537772900,0.23446052,3995.3,3995.2,5.1970843]
[1733537773107,2.94480458,3995.3,3995.2,5.1970843]
[1733537773313,2.94480458,3995.4,3995.2,5.1970843]
[1733537773603,3.11974458,3995.4,3995.3,0.5348]
[1733537773805,3.11974458,3995.4,3995.3,0.7238843]
[1733537774005,3.11974458,3995.4,3995.3,1.2506843]
[1733537774206,9.16754809,3995.9,3995.3,1.2506843]
[1733537774207,2.94480458,3995.6,3995.3,1.2506843]
[1733537774406,6.15260458,3995.9,3995.8,0.1890843]
[1733537774607,6.32623823,3995.9,3995.8,0.1890843]
[1733537774907,6.3262403,3995.9,3995.8,5.1970843]
[1733537775496,3.2078,3995.9,3995.8,5.1970843]
[1733537775902,3.38272,3995.9,3995.8,5.1970843]
[1733537776500,3.38272,3995.9,3995.8,9.0936956]
[1733537776906,0.17492,3995.9,3995.8,9.0936956]
[1733537777101,0.17492,3995.9,3995.8,9.09370648]
[1733537778012,0.17492,3995.9,3995.8,5.1970843]
[1733537778698,1.95278493,3996.1,3995.5,3.89662218]
[1733537778904,1.95278493,3996.1,3995.3,0.5268]
[1733537778905,1.95278493,3995.6,3995.3,0.1890843]
[1733537779098,0.17494,3995.4,3995.3,0.1890843]
[1733537784004,0.17494,3995.4,3995.3,4.08570648]
[1733537784605,0.17494,3995.4,3995.3,0.1890843]
[1733537785314,0.40939883,3995.4,3995.3,0.1890843]
[1733537788518,1.31092736,3995.4,3995.3,0.1890843]
[1733537788916,0.17496,3995.1,3995.0,3.89662218]
[1733537789126,0.17496,3995.1,3994.8,5.85743683]
[1733537789127,0.17496,3995.0,3994.9,3.89662218]
[1733537789422,4.34378736,3995.1,3995.0,0.1890843]
[1733537789423,4.28428853,3995.1,3995.0,0.1890843]
[1733537789613,4.5187704,3995.1,3995.0,0.1890843]
[1733537791111,3.61724187,3995.1,3995.0,5.1970843]
[1733537791316,3.38276,3995.1,3995.0,5.1970843]
[1733537791610,0.90152853,3995.2,3995.0,5.1970843]
[1733537791611,0.17496,3995.2,3995.0,9.09370648]
[1733537791815,0.17496,3995.2,3995.1,4.08570648]
[1733537792013,0.43734,3995.7,3995.1,0.1890843]
[1733537792220,0.17494,3995.5,3995.4,0.1890843]
[1733537795321,0.17494,3995.5,3995.4,5.1970843]
[1733537798430,0.17494,3995.6,3995.4,9.10586755]
[1733537798724,2.12775313,3995.9,3995.8,0.1890843]
[1733537799120,2.12775313,3995.9,3995.8,5.1970843]
[1733537799520,2.12775313,3995.9,3995.8,9.10586755]
[1733537800426,2.36217805,3995.9,3995.8,9.10586755]
[1733537801024,2.36217805,3995.9,3995.8,5.1970843]
[1733537801627,0.40934492,3995.9,3995.8,5.1970843]
[1733537801826,0.17492,3995.9,3995.8,5.1970843]
[1733537802126,0.17492,3995.9,3995.8,9.1031715]
[1733537802323,0.17492,3995.9,3995.8,5.1970843]
[1733537803727,3.7184,3996.4,3995.8,5.1970843]
[1733537803923,3.3827,3996.4,3996.3,0.1890843]
[1733537804227,0.1749,3996.4,3996.3,0.1890843]
[1733537804620,0.1749,3996.4,3996.3,6.04652113]
[1733537805522,0.1749,3996.5,3996.3,0.1890843]
[1733537805723,3.38268,3996.8,3996.7,0.1890843]
[1733537805924,3.6170593,3996.8,3996.7,0.1890843]
[1733537806125,3.38268,3996.8,3996.7,0.1890843]
[1733537806620,3.38268,3996.8,3996.7,0.8600843]
[1733537807428,3.38268,3996.8,3996.7,1.5476843]
[1733537808824,3.38268,3996.8,3996.7,2.2391843]
[1733537810920,3.38268,3996.8,3996.7,0.1890843]
[1733537813543,0.17488,3996.8,3996.7,0.1890843]
[1733537813733,0.17488,3996.8,3996.7,3.3968843]
[1733537813929,0.17488,3996.9,3996.7,7.29913019]
[1733537814124,0.89356,3997.3,3997.2,0.1890843]
[1733537814525,1.7941506,3997.3,3997.2,0.1890843]
[1733537814730,0.17486,3997.3,3997.2,0.1890843]
[1733537814933,1.0754506,3997.3,3997.2,0.1890843]
[1733537816127,0.17486,3997.3,3997.2,0.1890843]
[1733537819829,0.17489,3996.6,3996.5,0.6647]
[1733537820629,1.5883906,3997.0,3996.3,3.8955]
[1733537820830,1.5883906,3997.0,3996.4,0.6647]
[1733537821028,0.17489,3996.5,3996.4,0.6647]
[1733537824139,2.2632906,3997.0,3996.4,0.6647]
[1733537824335,0.17489,3996.6,3996.4,0.6647]
[1733537824543,0.17489,3996.5,3996.4,0.6647]
[1733537824741,0.9005906,3997.0,3996.4,0.6647]
[1733537824940,0.17489,3996.5,3996.4,0.6647]
[1733537831456,4.97638,3997.1,3996.4,0.6647]
[1733537831751,0.17489,3996.5,3996.4,0.6647]
[1733537832252,0.17489,3996.7,3996.5,0.17489]
[1733537832556,0.17488,3996.8,3996.6,1.0754806]
[1733537832756,0.17488,3996.8,3996.7,3.2078]
[1733537832957,1.15322,3997.7,3996.7,3.2078]
[1733537833259,0.17487,3997.1,3997.0,0.9005906]
[1733537833644,0.17487,3997.1,3997.0,1.5772906]
[1733537834754,0.17487,3997.1,3997.0,1.7521606]
[1733537834952,3.64489,3998.0,3997.1,0.17487]
[1733537834953,0.17486,3997.2,3997.1,0.17487]
[1733537835253,0.17487,3997.1,3997.0,1.5772906]
[1733537835452,0.4371,3997.8,3997.0,1.5772906]
[1733537835661,3.2078,3998.0,3997.0,1.5772906]
[1733537835951,0.17484,3997.7,3997.6,0.9005906]
[1733537837756,0.17484,3997.7,3997.6,4.80283649]
[1733537838855,0.17484,3997.7,3997.6,0.9005906]
[1733537839155,0.17484,3997.7,3997.6,4.78912905]
[1733537839551,0.9005906,3998.3,3997.6,4.96376296]
[1733537839552,0.17482,3998.2,3997.6,4.96376296]
[1733537839858,0.17484,3997.8,3997.7,3.2078]
[1733537840457,0.17484,3997.8,3997.7,5.004]
[1733537840959,1.5814906,3998.4,3997.7,5.004]
[1733537841253,1.5814906,3998.4,3997.8,3.2078]
[1733537841254,0.17483,3998.0,3997.8,3.2078]
[1733537841454,1.5814906,3998.4,3997.8,7.09613236]
[1733537841659,0.6752,3998.5,3997.8,7.99672296]
[1733537841959,0.6752,3998.5,3997.9,3.88833236]
[1733537841960,0.17482,3998.1,3997.9,3.88833236]
[1733537842157,0.6752,3998.5,3997.9,3.88833236]
[1733537842355,0.17482,3998.2,3997.9,4.06316236]
[1733537842556,0.6752,3998.5,3997.9,3.88833236]
[1733537842860,0.17482,3998.3,3998.0,4.57433236]
[1733537843158,0.17482,3998.2,3998.0,0.686]
[1733537843348,0.17482,3998.2,3998.1,5.004]
[1733537846657,0.17481,3998.4,3998.1,5.004]
[1733537847758,0.6752,3998.5,3998.1,5.004]
[1733537847759,0.17482,3998.3,3998.1,5.004]
[1733537847956,0.674,3998.7,3998.1,5.004]
[1733537848160,0.674,3998.7,3998.2,0.17482]
[1733537848161,0.1748,3998.6,3998.2,0.17482]
[1733537849855,0.1748,3998.6,3998.3,3.2078]
[1733537850055,0.17479,3998.9,3998.4,0.17481]
[1733537850365,0.6981,3999.0,3998.3,3.2078]
[1733537850549,6.1513203,3999.3,3998.4,0.17481]
[1733537850754,0.17479,3998.9,3998.7,3.2078]
[1733537851051,0.17479,3998.8,3998.7,3.2078]
[1733537852163,0.9005906,3999.1,3998.7,3.2078]
[1733537852361,0.6692,3999.2,3998.7,3.2078]
[1733537852362,0.17479,3999.0,3998.7,3.2078]
[1733537852851,0.17478,3999.1,3998.7,3.2078]
[1733537853055,0.17479,3999.0,3998.7,3.2078]
[1733537853257,0.17478,3999.1,3998.7,3.2078]
[1733537853661,0.17479,3999.0,3998.7,3.2078]
[1733537854056,0.17479,3999.0,3998.8,0.6686]
[1733537854862,0.17479,3998.9,3998.8,0.6686]
[1733537855972,0.6692,3999.2,3998.7,5.004]
[1733537856269,1.51979,3998.8,3998.7,5.004]
[1733537857765,0.17478,3999.1,3998.7,5.9045906]
[1733537858169,1.50328,3999.2,3998.7,5.9045906]
[1733537858562,1.50328,3999.2,3998.7,6.15444443]
[1733537858761,1.50328,3999.2,3998.7,6.32924443]
[1733537859372,1.3285,3999.2,3998.7,6.15444443]
[1733537859571,0.17478,3999.1,3998.7,6.15444443]
[1733537859763,3.2078,3999.3,3998.7,6.15444443]
[1733537859971,0.17478,3999.2,3998.7,6.32924443]
[1733537860667,0.17478,3999.1,3998.7,6.32924443]
[1733537861072,0.01167346,3999.0,3998.7,6.32923443]
[1733537861367,0.01167346,3999.0,3998.7,6.15444443]
[1733537861571,0.01167346,3999.0,3998.8,0.17479]
[1733537862161,0.01167346,3999.0,3998.9,0.17479]
[1733537865273,0.01167346,3999.0,3998.9,5.17879]
[1733537865870,0.01167346,3999.0,3998.9,9.06152325]
[1733537866971,0.9005906,4000.1,3999.8,0.17475]
[1733537866972,0.17475,3999.9,3999.8,0.17475]
[1733537867167,0.17474,4000.0,3999.8,0.17475]
[1733537867371,0.17474,4000.0,3999.7,1.3775]
[1733537867663,0.6831,4000.3,3999.7,1.3775]
[1733537867871,0.17474,4000.1,3999.9,0.17474]
[1733537868463,0.17473,4000.2,4000.1,0.17474]
[1733537868672,0.6831,4000.3,4000.2,0.17473]
[1733537868868,0.17472,4000.4,4000.2,0.17473]
[1733537869178,0.6708,4000.9,4000.2,0.9005906]
[1733537869477,0.17472,4000.6,4000.3,0.86513]
[1733537869975,3.2078,4001.2,4000.3,0.86513]
[1733537869976,3.2078,4001.7,4000.5,0.9005906]
[1733537870168,0.9005906,4001.3,4000.5,0.9005906]
[1733537870472,0.17471,4000.7,4000.4,1.3402]
[1733537870669,0.7137,4000.6,4000.4,1.3402]
[1733537870976,0.17471,4000.8,4000.4,1.3402]
[1733537871175,1.5591906,4001.0,4000.4,2.4155106]
[1733537871176,0.6586,4001.0,4000.4,2.4155106]
[1733537871373,0.7137,4001.1,4000.4,2.2407906]
[1733537871675,0.1747,4001.0,4000.7,3.2078]
[1733537871875,0.7137,4001.1,4000.7,3.2078]
[1733537872279,0.8884,4001.1,4000.7,3.2078]
[1733537872469,0.8884,4001.1,4000.6,0.6605]
[1733537872777,0.1747,4001.0,4000.6,0.6605]
[1733537872970,0.7137,4001.1,4000.5,0.24977021]
[1733537873170,0.17472,4000.6,4000.5,0.24977021]
[1733537873374,0.7026,4000.9,4000.5,0.24977021]
[1733537873778,0.7026,4000.9,4000.5,0.42449021]
[1733537874278,0.8239,4001.0,4000.5,0.42449021]
[1733537874575,1.6142906,4001.1,4000.5,0.24977021]
[1733537874776,1.0752806,4001.1,4000.6,0.17471]
[1733537874976,0.9005906,4001.1,4000.5,0.24977021]
[1733537875169,0.7026,4001.0,4000.5,0.24977021]
[1733537875570,0.7026,4001.0,4000.5,0.42449021]
[1733537875571,0.1747,4001.0,4000.5,0.42449021]
[1733537875778,3.2078,4001.1,4000.5,0.24977021]
[1733537875972,3.2078,4001.1,4000.5,1.15036081]
[1733537876173,3.38249,4001.1,4000.7,0.17471]
[1733537876378,3.38249,4001.1,4000.8,0.6789]
[1733537876571,3.2078,4001.1,4000.9,0.6568]
[1733537876776,0.17469,4001.3,4001.0,0.685]
[1733537876972,0.17469,4001.3,4001.1,1.6143906]
[1733537877177,0.17468,4001.5,4001.2,3.2078]
[1733537877374,1.3482,4001.8,4001.2,3.2078]
[1733537877578,0.17468,4001.3,4001.2,3.2078]
[1733537877976,3.2078,4001.4,4000.5,0.24977021]
[1733537878183,0.17471,4000.7,4000.5,0.24977021]
[1733537878481,0.17471,4000.7,4000.5,0.96357021]
[1733537878777,0.17472,4000.6,4000.5,0.96357021]
[1733537878986,0.17472,4000.6,4000.5,0.24977021]
[1733537881078,0.17475,3999.9,3999.8,0.685]
[1733537881488,0.17475,3999.8,3999.7,5.004]
[1733537881783,0.17475,3999.7,3999.6,1.15036081]
[1733537881983,0.83925,3999.7,3999.6,0.24977021]
[1733537882878,0.6645,3999.7,3999.3,0.9005906]
[1733537883076,0.17477,3999.4,3999.3,0.9005906]
[1733537883884,0.17477,3999.4,3999.3,1.15035831]
[1733537886284,0.17476,3999.5,3999.3,1.15035831]
[1733537886484,0.17477,3999.4,3999.3,1.15035831]
[1733537887187,0.17477,3999.5,3999.3,1.15035831]
[1733537887377,0.17477,3999.4,3999.3,1.15035831]
[1733537887582,0.6645,3999.7,3999.3,1.15035831]
[1733537887778,0.17477,3999.4,3999.3,1.83535831]
[1733537888581,0.17477,3999.4,3999.3,0.24976771]
[1733537888887,0.17477,3999.3,3999.2,5.004]
[1733537889087,0.17478,3999.2,3999.1,0.685]
[1733537889288,0.17478,3999.2,3999.0,4.5896199]
[1733537889591,0.17478,3999.2,3999.1,5.004]
[1733537890495,0.17478,3999.2,3999.1,8.8861199]
[1733537890691,0.17478,3999.2,3999.1,5.004]
[1733537891692,0.17478,3999.3,3999.1,8.8861199]
[1733537891993,1.3374506,4000.1,3999.1,8.8861199]
[1733537891994,3.2078,4000.4,3999.2,8.66605711]
[1733537892192,2.0403,4000.6,3999.9,0.9005906]
[1733537892387,2.0403,4000.6,3999.8,4.57196329]
[1733537892388,0.17474,4000.0,3999.8,4.57196329]
[1733537892584,2.0403,4000.6,3999.8,4.57196329]
[1733537892795,0.86545,3999.9,3999.8,0.685]
[1733537893391,0.17474,4000.0,3999.8,0.685]
[1733537893701,0.17474,4000.0,3999.8,4.57196329]
[1733537894190,0.6907,4000.2,3999.8,0.685]
[1733537894191,0.17475,3999.9,3999.8,0.685]
[1733537894597,0.6907,4000.2,3999.8,4.57196329]
[1733537894895,0.17475,3999.9,3999.8,4.57196329]
[1733537895489,0.17475,3999.9,3999.8,3.88696329]
[1733537895797,0.17475,3999.9,3999.6,5.83044494]
[1733537895798,0.9005906,4000.0,3999.4,3.88696329]
[1733537896092,4.1083906,3999.6,3999.0,4.13677593]
[1733537896293,0.17478,3999.1,3999.0,4.14220589]
[1733537896693,0.17478,3999.1,3999.0,0.24981264]
[1733537897092,0.17478,3999.1,3999.0,4.14344009]
[1733537897296,0.17478,3999.1,3999.0,4.14347918]
[1733537897598,0.17478,3999.1,3999.0,0.24981264]
[1733537898002,0.17478,3999.1,3999.0,1.15040324]
[1733537898200,0.17478,3999.1,3999.0,5.04406978]
[1733537898606,0.17478,3999.1,3999.0,4.14347918]
[1733537899304,0.17478,3999.1,3999.0,0.24981264]
[1733537899610,0.17478,3999.1,3999.0,4.14347918]
[1733537899801,0.17478,3999.1,3999.0,3.89366654]
[1733537900004,1.94882814,3999.4,3998.9,5.004]
[1733537900005,0.17479,3999.0,3998.9,5.004]
[1733537900304,0.17479,3998.8,3998.7,0.7029]
[1733537900504,0.17479,3998.8,3998.7,5.7069]
[1733537900908,0.17479,3998.8,3998.7,5.004]
[1733537901111,3.38259,3998.8,3998.7,5.004]
[1733537902114,0.17479,3998.8,3998.7,5.004]
[1733537903415,0.17478,3999.1,3998.7,12.10546654]
[1733537903616,0.17478,3999.1,3998.8,5.31749143]
[1733537903814,0.17478,3999.1,3998.9,3.89689143]
[1733537904112,0.17475,3999.8,3999.2,0.17477]
[1733537904422,1.3582,4000.4,3999.4,7.10227168]
[1733537904613,0.17474,4000.1,3999.8,3.2078]
[1733537905113,0.17474,4000.1,3999.9,5.004]
[1733537905420,1.3582,4000.4,3999.9,5.004]
[1733537905918,0.17473,4000.2,3999.9,5.004]
[1733537906218,0.17474,4000.1,3999.9,5.004]
[1733537907116,0.17473,4000.2,3999.9,5.004]
[1733537907313,0.17474,4000.1,3999.9,5.004]
[1733537908517,0.17474,4000.0,3999.9,5.004]
[1733537908722,1.3582,4000.4,3999.9,5.004]
[1733537909312,0.17473,4000.3,3999.9,5.004]
[1733537909519,3.2078,4000.6,3999.9,8.89847168]
[1733537909723,1.3331,4000.9,4000.0,3.89447168]
[1733537909924,0.23415963,4000.8,4000.1,1.387]
[1733537910124,0.17473,4000.4,4000.2,0.6944]
[1733537910324,0.17473,4000.4,4000.2,4.6155]
[1733537910822,1.3331,4000.9,4000.2,4.6155]
[1733537911019,0.17473,4000.3,4000.2,4.6155]
[1733537911215,0.17473,4000.3,4000.2,0.7133]
[1733537912320,1.3331,4000.9,4000.2,0.7133]
[1733537912529,0.17472,4000.5,4000.2,4.60777168]
[1733537912722,0.17472,4000.6,4000.3,4.58887168]
[1733537913321,0.17472,4000.6,4000.3,0.6944]
[1733537913531,0.17472,4000.6,4000.3,4.58887168]
[1733537913717,0.17471,4000.7,4000.3,4.58887168]
[1733537913924,0.17472,4000.6,4000.3,0.6944]
[1733537914725,0.17471,4000.8,4000.3,0.6944]
[1733537914927,1.3331,4000.9,4000.3,0.6944]
[1733537914928,0.17472,4000.5,4000.3,0.6944]
[1733537915127,1.3331,4000.9,4000.3,0.6944]
[1733537915328,0.17472,4000.6,4000.3,0.6944]
[1733537916122,1.3331,4000.9,4000.3,4.58887168]
[1733537916123,0.6862,4000.9,4000.3,4.58887168]
[1733537916324,0.17472,4000.5,4000.3,4.58887168]
[1733537916524,0.17472,4000.6,4000.3,4.58887168]
[1733537917327,3.2078,4000.5,4000.0,3.89447168]
[1733537917527,0.17474,4000.0,3999.9,4.14378084]
[1733537917725,0.17474,4000.0,3999.9,0.24977333]
[1733537918733,1.3162,4000.2,3999.7,10.96370751]
[1733537918734,0.17475,3999.8,3999.7,7.0697]
[1733537918930,0.17475,3999.8,3999.7,0.6932]
[1733537919233,1.94882814,3999.9,3999.2,0.6758]
[1733537919423,0.17477,3999.3,3999.2,0.6758]
[1733537919630,0.17477,3999.3,3999.2,1.3778]
[1733537919831,0.17477,3999.3,3999.2,6.3818]
[1733537923333,0.17477,3999.3,3999.2,5.004]
[1733537923735,0.17479,3998.9,3998.8,1.4025]
[1733537924235,0.6746,3999.2,3998.8,1.4025]
[1733537924830,0.17479,3998.9,3998.8,1.4025]
[1733537925026,0.17479,3998.9,3998.8,1.65230078]
[1733537925532,0.17479,3999.0,3998.8,1.65230078]
[1733537925738,0.17479,3998.9,3998.8,1.65230078]
[1733537926436,0.17479,3998.9,3998.8,9.42622736]
[1733537926637,0.6746,3999.2,3998.8,17.85158297]
[1733537926833,0.84938,3999.2,3999.0,5.85507603]
[1733537927140,0.84938,3999.2,3999.1,5.85507603]
[1733537928138,0.17478,3999.1,3999.0,5.85507603]
[1733537929132,0.17479,3999.0,3998.8,9.42622736]
[1733537929334,0.17479,3999.0,3998.8,8.74122736]
[1733537929534,0.17479,3999.0,3998.8,5.97130078]
[1733537929735,0.6746,3999.2,3998.8,5.97130078]
[1733537929941,0.17478,3999.1,3998.9,5.85609069]
[1733537930142,0.17478,3999.1,3999.0,3.90452349]
[1733537930143,0.83938,3999.1,3999.0,3.90452349]
[1733537930435,0.6646,3999.1,3998.9,3.90452349]
[1733537930631,0.17479,3999.0,3998.9,3.90452349]
[1733537931333,0.17479,3999.0,3998.9,3.90462024]
[1733537932243,0.17479,3999.0,3998.8,5.25380078]
[1733537932244,0.17479,3998.9,3998.8,8.90862024]
[1733537932439,0.17479,3998.9,3998.8,3.90462024]
[1733537934345,0.17479,3998.8,3998.7,5.6521]
[1733537934543,0.17479,3998.8,3998.7,0.6481]
[1733537934845,0.17479,3998.8,3998.7,5.6521]
[1733537935937,2.61342814,3999.1,3998.5,3.90462024]
[1733537936153,2.61342814,3999.1,3998.4,0.6946]
[1733537936154,2.61342814,3999.1,3998.4,4.59922024]
[1733537936338,0.17481,3998.5,3998.4,1.3833]
[1733537936948,0.17481,3998.5,3998.4,6.3873]
[1733537937347,0.17481,3998.6,3998.4,6.3873]
[1733537937543,0.17481,3998.5,3998.4,10.29192024]
[1733537937739,0.17481,3998.5,3998.4,6.3873]
[1733537938235,0.17481,3998.5,3998.4,5.004]
[1733537941561,0.17481,3998.5,3998.2,3.90462024]
[1733537941562,0.89992206,3998.5,3998.2,3.90462024]
[1733537941855,0.17482,3998.1,3998.0,0.6705]
[1733537942057,1.07474206,3998.1,3998.0,0.24988942]
[1733537942353,1.07474206,3998.1,3997.8,3.90462024]
[1733537942354,0.17483,3997.9,3997.8,5.004]
[1733537942559,0.17484,3997.8,3997.7,4.58922024]
[1733537942759,1.07476206,3997.8,3997.7,4.58922024]
[1733537942956,1.07476206,3997.8,3997.7,9.59322024]
[1733537943358,0.89992206,3998.1,3997.7,9.59322024]
[1733537943656,0.89992206,3997.8,3997.7,3.90118096]
[1733537943851,0.17484,3997.7,3997.6,3.90118096]
[1733537944052,0.17485,3997.6,3997.5,9.15495429]
[1733537944257,0.17485,3997.6,3997.5,5.25377333]
[1733537946963,5.15868783,3998.3,3997.5,5.25377333]
[1733537947163,0.17483,3998.1,3997.6,7.28382096]
[1733537947455,0.17483,3998.0,3997.8,3.90118096]
[1733537947661,0.17483,3998.0,3997.9,1.3874]
[1733537947858,0.17483,3998.0,3997.9,6.3914]
[1733537948065,0.17481,3998.5,3998.0,0.17482]
[1733537948358,0.17482,3998.3,3998.0,4.07600096]
[1733537948663,0.17481,3998.4,3998.1,0.17482]
[1733537948860,0.17481,3998.4,3998.0,9.57968096]
[1733537948861,0.6787,3998.9,3998.0,9.57968096]
[1733537949159,0.17479,3999.0,3998.3,3.38261]
[1733537949364,0.1748,3998.7,3998.4,4.07599096]
[1733537949661,0.17481,3998.5,3998.4,8.90518096]
[1733537949856,0.17481,3998.5,3998.4,5.004]
[1733537951351,3.2078,3999.0,3998.4,5.004]
[1733537951555,3.2078,3999.0,3998.4,8.90518096]
[1733537952161,0.1748,3998.6,3998.4,8.90518096]
[1733537952361,0.1748,3998.7,3998.4,9.07999096]
[1733537952561,3.2078,3999.0,3998.5,4.07598096]
[1733537952752,3.2078,3999.0,3998.8,0.17479]
[1733537952955,3.38259,3999.0,3998.8,0.17479]
[1733537953156,1.95088783,3999.5,3998.9,4.6145]
[1733537953359,0.17478,3999.1,3998.9,4.78929]